fUSD/lending_fUSD_20250123
["ID","MTS","AMOUNT","RATE_DAILY","PERIOD"]
[350063284,1737597043306,-726.74671551,0.00019435,2]
[350063285,1737597043321,-500.0,0.00019451,2]
[350063286,1737597043335,-500.0,0.00019451,2]
[350063287,1737597043348,-251.256397,0.00019452,2]
[350063288,1737597043363,-336.867004,0.00019452,2]
[350063289,1737597043378,-389.7229433,0.00019452,2]
[350063290,1737597043403,-521.65,0.00019178,2]
[350063291,1737597043419,-187.89322281,0.00019452,2]
[350063292,1737597043429,-500.0,0.00019452,2]
[350063293,1737597043440,-500.0,0.00019452,2]
[350063294,1737597043454,-508.12746692,0.00019452,2]
[350063295,1737597043468,-36.35932627,0.00019452,2]
[350063296,1737597043491,-463.64067373,0.00019452,2]
[350063297,1737597043503,-500.0,0.00019452,2]
[350063298,1737597043519,-500.0,0.00019452,2]
[350063299,1737597043531,-514.1956945,0.00019452,2]
[350063300,1737597043544,-503.76848045,0.00019452,2]
[350063301,1737597043556,-500.0,0.00019452,2]
[350063302,1737597043569,-500.0,0.00019452,2]
[350063303,1737597043582,-500.0,0.00019452,2]
[350063304,1737597043595,-426.77805205,0.00019452,2]
[350063306,1737597043612,-73.22194795,0.00019452,2]
[350063307,1737597043625,-508.28456122,0.00019452,2]
[350063308,1737597043637,-515.60397605,0.00019452,2]
[350063309,1737597043650,-180.25160691,0.00019452,2]
[350063310,1737597043664,-500.0,0.00019452,2]
[350063311,1737597043676,-500.0,0.00019452,2]
[350063312,1737597043690,-363.6087753,0.00019452,2]
[350063313,1737597043702,-565.2,0.00019452,2]
[350063314,1737597043715,-500.0,0.00019452,2]
[350063315,1737597043734,-500.0,0.00019452,2]
[350063316,1737597043747,-357.36776924,0.00019452,2]
[350063317,1737597043761,-500.0,0.00019452,2]
[350063318,1737597043774,-86.46136333,0.00019452,2]
[350063319,1737597044035,-5000.0,0.00018978,2]
[350063320,1737597044048,-339.51808944,0.00019178,2]
[350063321,1737597044064,-160.48191056,0.00019178,2]
[350063322,1737597044079,-500.0,0.00019178,2]
[350063323,1737597044093,-500.0,0.00019178,2]
[350063324,1737597044105,-421.61946403,0.00019452,2]
[350063325,1737597044118,-500.0,0.00019452,2]
[350063326,1737597044131,-530.24222591,0.00019452,2]
[350063328,1737597044143,-500.0,0.00019452,2]
[350063330,1737597044156,-500.0,0.00019452,2]
[350063332,1737597044171,-500.0,0.00019452,2]
[350063334,1737597044187,-500.0,0.00019452,2]
[350063337,1737597044200,-435.61395754,0.00019452,2]
[350063338,1737597044216,-64.38604246,0.00019452,2]
[350063339,1737597044229,-500.0,0.00019452,2]
[350063340,1737597044241,-500.0,0.00019452,2]
[350063341,1737597044250,-505.37698642,0.00019452,2]
[350063342,1737597044259,-500.0,0.00019452,2]
[350063343,1737597044269,-252.38174962,0.00019452,2]
[350063344,1737597044278,-500.0,0.00019452,2]
[350063345,1737597044288,-254.34994653,0.00019452,2]
[350063346,1737597044297,-500.0,0.00019452,2]
[350063347,1737597044307,-500.0,0.00019452,2]
[350063348,1737597044316,-630.52298506,0.00019452,2]
[350063349,1737597044326,-500.0,0.00019452,2]
[350063350,1737597044337,-500.0,0.00019452,2]
[350063351,1737597044346,-500.0,0.00019452,2]
[350063352,1737597044356,-507.10309,0.00019452,2]
[350063353,1737597044367,-507.37510429,0.00019452,2]
[350063354,1737597044376,-500.0,0.00019452,2]
[350063355,1737597044387,-500.0,0.00019452,2]
[350063356,1737597044396,-500.0,0.00019452,2]
[350063357,1737597044407,-504.88105496,0.00019452,2]
[350063358,1737597044417,-396.06308745,0.00019452,2]
[350063359,1737597044427,-500.0,0.00019452,2]
[350063360,1737597044437,-500.0,0.00019452,2]
[350063361,1737597044447,-500.0,0.00019452,2]
[350063362,1737597044456,-500.0,0.00019452,2]
[350063363,1737597044466,-443.15671272,0.00019452,2]
[350063364,1737597044478,-500.0,0.00019452,2]
[350063365,1737597044487,-500.0,0.00019452,2]
[350063366,1737597044497,-515.08381029,0.00019452,2]
[350063367,1737597044507,-511.40444115,0.00019452,2]
[350063368,1737597044517,-500.0,0.00019452,2]
[350063369,1737597044810,-500.0,0.00019452,2]
[350063370,1737597044830,-500.0,0.00019452,2]
[350063371,1737597044839,-500.0,0.00019452,2]
[350063372,1737597044849,-500.0,0.00019452,2]
[350063373,1737597044859,-500.0,0.00019452,2]
[350063374,1737597044868,-512.82995018,0.00019452,2]
[350063375,1737597044878,-517.615743,0.00019452,2]
[350063376,1737597044888,-500.0,0.00019452,2]
[350063377,1737597044899,-500.0,0.00019452,2]
[350063378,1737597044908,-500.0,0.00019452,2]
[350063379,1737597044917,-384.61952347,0.00019452,2]
[350063380,1737597044927,-500.0,0.00019452,2]
[350063381,1737597044937,-500.0,0.00019452,2]
[350063382,1737597044947,-516.02233427,0.00019452,2]
[350063383,1737597044959,-228.94260964,0.00019452,2]
[350063384,1737597044969,-175.24585286,0.00019452,2]
[350063385,1737597044981,-549.26130391,0.00019452,2]
[350063386,1737597044990,-500.0,0.00019452,2]
[350063387,1737597044999,-500.0,0.00019452,2]
[350063388,1737597045009,-500.0,0.00019452,2]
[350063389,1737597045018,-514.8478723,0.00019452,2]
[350063390,1737597045028,-500.0,0.00019452,2]
[350063391,1737597045039,-500.0,0.00019452,2]
[350063392,1737597045048,-500.0,0.00019452,2]
[350063393,1737597045057,-500.0,0.00019452,2]
[350063394,1737597045067,-500.0,0.00019452,2]
[350063395,1737597045076,-500.0,0.00019452,2]
[350063396,1737597045085,-500.0,0.00019452,2]
[350063397,1737597045094,-500.0,0.00019452,2]
[350063398,1737597045104,-510.09194778,0.00019452,2]
[350063399,1737597045113,-500.0,0.00019452,2]
[350063400,1737597045122,-500.0,0.00019452,2]
[350063401,1737597045131,-233.89460858,0.00019452,2]
[350063402,1737597045141,-522.47,0.00019452,2]
[350063403,1737597045151,-500.0,0.00019452,2]
[350063404,1737597045161,-500.0,0.00019452,2]
[350063405,1737597045173,-500.0,0.00019452,2]
[350063406,1737597045182,-500.0,0.00019452,2]
[350063407,1737597045193,-500.0,0.00019452,2]
[350063408,1737597045202,-500.0,0.00019452,2]
[350063409,1737597045212,-500.0,0.00019452,2]
[350063410,1737597045224,-500.0,0.00019452,2]
[350063411,1737597045233,-530.55482362,0.00019452,2]
[350063412,1737597045243,-500.0,0.00019452,2]
[350063413,1737597045252,-506.64448037,0.00019452,2]
[350063414,1737597045262,-500.0,0.00019452,2]
[350063415,1737597045271,-500.0,0.00019452,2]
[350063416,1737597045280,-500.0,0.00019452,2]
[350063417,1737597045289,-500.0,0.00019452,2]
[350063418,1737597045298,-500.0,0.00019452,2]
[350063419,1737597045308,-500.0,0.00019452,2]
[350063420,1737597045317,-500.0,0.00019452,2]
[350063421,1737597045326,-500.0,0.00019452,2]
[350063422,1737597045336,-500.0,0.00019452,2]
[350063423,1737597045345,-500.0,0.00019452,2]
[350063424,1737597045355,-489.34811636,0.00019452,2]
[350063425,1737597045364,-500.0,0.00019452,2]
[350063426,1737597045373,-500.0,0.00019452,2]
[350063427,1737597045382,-500.0,0.00019452,2]
[350063428,1737597045392,-500.0,0.00019452,2]
[350063429,1737597045401,-500.0,0.00019452,2]
[350063430,1737597045410,-500.0,0.00019452,2]
[350063431,1737597045419,-500.0,0.00019452,2]
[350063432,1737597045429,-500.0,0.00019452,2]
[350063433,1737597045439,-530.5289617,0.00019452,2]
[350063434,1737597045448,-500.0,0.00019452,2]
[350063435,1737597045457,-500.0,0.00019452,2]
[350063436,1737597045467,-500.0,0.00019452,2]
[350063437,1737597045478,-519.65198607,0.00019452,2]
[350063438,1737597045488,-500.0,0.00019452,2]
[350063439,1737597045498,-500.0,0.00019452,2]
[350063440,1737597045508,-500.0,0.00019452,2]
[350063441,1737597045517,-500.0,0.00019452,2]
[350063442,1737597045527,-500.0,0.00019452,2]
[350063443,1737597045537,-500.0,0.00019452,7]
[350063444,1737597045546,-519.05041613,0.00019452,2]
[350063445,1737597045555,-513.6747668,0.00019452,2]
[350063446,1737597045565,-500.0,0.00019452,2]
[350063447,1737597045575,-500.0,0.00019452,2]
[350063448,1737597045584,-500.0,0.00019452,2]
[350063449,1737597045595,-500.0,0.00019452,2]
[350063450,1737597045604,-500.0,0.00019452,2]
[350063451,1737597045615,-500.0,0.00019452,2]
[350063452,1737597045625,-500.0,0.00019452,2]
[350063453,1737597045634,-500.0,0.00019452,2]
[350063454,1737597045646,-515.56183885,0.00019452,2]
[350063455,1737597045661,-500.0,0.00019452,2]
[350063456,1737597045671,-500.0,0.00019452,2]
[350063457,1737597045682,-500.0,0.00019452,2]
[350063458,1737597045691,-500.0,0.00019452,2]
[350063459,1737597045701,-508.30223024,0.00019452,2]
[350063460,1737597045710,-512.38177561,0.00019452,2]
[350063461,1737597045719,-623.29,0.00019452,2]
[350063462,1737597045730,-500.0,0.00019452,2]
[350063463,1737597045739,-616.87,0.00019452,2]
[350063464,1737597045748,-500.0,0.00019452,2]
[350063465,1737597045757,-500.0,0.00019452,2]
[350063466,1737597045766,-500.0,0.00019452,2]
[350063467,1737597045775,-500.0,0.00019452,2]
[350063468,1737597045784,-483.15139005,0.00019452,2]
[350063469,1737597045793,-500.0,0.00019452,2]
[350063470,1737597045803,-510.69735516,0.00019452,2]
[350063471,1737597045812,-512.53193803,0.00019452,2]
[350063472,1737597045821,-500.0,0.00019452,2]
[350063473,1737597045830,-500.0,0.00019452,2]
[350063474,1737597045840,-500.0,0.00019452,2]
[350063475,1737597045849,-500.0,0.00019452,2]
[350063476,1737597045859,-309.56113555,0.00019452,2]
[350063477,1737597045869,-500.0,0.00019452,2]
[350063478,1737597045878,-500.0,0.00019452,2]
[350063479,1737597045887,-500.0,0.00019452,2]
[350063480,1737597045896,-500.0,0.00019452,2]
[350063481,1737597045906,-507.96025108,0.00019452,2]
[350063482,1737597045915,-500.0,0.00019452,2]
[350063483,1737597045925,-500.0,0.00019452,2]
[350063484,1737597045936,-500.0,0.00019452,2]
[350063485,1737597045946,-509.43,0.00019452,2]
[350063486,1737597045957,-500.0,0.00019452,2]
[350063487,1737597045968,-527.52484702,0.00019452,2]
[350063488,1737597045979,-500.0,0.00019452,2]
[350063489,1737597045988,-500.0,0.00019452,2]
[350063490,1737597046002,-500.0,0.00019452,2]
[350063491,1737597046011,-500.0,0.00019452,2]
[350063492,1737597046020,-502.95356368,0.00019452,2]
[350063493,1737597046030,-500.0,0.00019452,2]
[350063494,1737597046039,-500.0,0.00019452,2]
[350063495,1737597046048,-500.0,0.00019452,2]
[350063496,1737597046057,-500.0,0.00019452,2]
[350063498,1737597046067,-500.0,0.00019452,2]
[350063499,1737597046076,-515.09455209,0.00019452,2]
[350063500,1737597046085,-500.0,0.00019452,2]
[350063501,1737597046095,-509.86123177,0.00019452,2]
[350063502,1737597046104,-500.0,0.00019452,2]
[350063503,1737597046113,-825.88,0.00019452,2]
[350063504,1737597046123,-500.0,0.00019452,2]
[350063505,1737597046132,-580.1,0.00019452,2]
[350063506,1737597046141,-500.0,0.00019452,2]
[350063507,1737597046152,-512.76347052,0.00019452,2]
[350063508,1737597046163,-500.0,0.00019452,2]
[350063509,1737597046173,-504.8212508,0.00019452,2]
[350063510,1737597046182,-514.79481841,0.00019452,2]
[350063511,1737597046191,-500.0,0.00019452,2]
[350063512,1737597046201,-341.25069447,0.00019452,2]
[350063513,1737597046211,-628.58,0.00019452,2]
[350063514,1737597046220,-500.0,0.00019452,2]
[350063515,1737597046231,-289.43921494,0.00019452,2]
[350063516,1737597046241,-500.0,0.00019452,2]
[350063517,1737597046250,-502.51594438,0.00019452,2]
[350063518,1737597046259,-500.0,0.00019452,2]
[350063519,1737597046269,-245.65717419,0.00019452,2]
[350063520,1737597046278,-500.0,0.00019452,2]
[350063521,1737597046287,-502.5123143,0.00019452,2]
[350063522,1737597046296,-507.80213444,0.00019452,2]
[350063523,1737597046305,-500.0,0.00019452,2]
[350063524,1737597046315,-505.8110256,0.00019452,2]
[350063525,1737597046325,-500.0,0.00019452,2]
[350063526,1737597046334,-501.59,0.00019452,2]
[350063527,1737597046343,-500.0,0.00019452,2]
[350063528,1737597046353,-505.00793749,0.00019452,2]
[350063529,1737597046362,-500.0,0.00019452,2]
[350063530,1737597046372,-505.89174385,0.00019452,2]
[350063531,1737597046381,-500.0,0.00019452,2]
[350063532,1737597046390,-520.06,0.00019452,2]
[350063533,1737597046399,-500.0,0.00019452,2]
[350063534,1737597046409,-714.27,0.00019452,2]
[350063535,1737597046418,-640.0,0.00019452,2]
[350063536,1737597046427,-500.0,0.00019452,2]
[350063537,1737597046436,-510.19270794,0.00019452,2]
[350063538,1737597046446,-500.0,0.00019452,2]
[350063539,1737597046458,-507.98042435,0.00019452,2]
[350063540,1737597046467,-500.0,0.00019452,2]
[350063541,1737597046478,-500.0,0.00019452,2]
[350063542,1737597046488,-500.0,0.00019452,2]
[350063543,1737597046497,-500.0,0.00019452,2]
[350063544,1737597046506,-500.0,0.00019452,2]
[350063545,1737597046515,-500.0,0.00019452,2]
[350063546,1737597046525,-500.0,0.00019452,2]
[350063547,1737597046534,-215.697285,0.00019452,2]
[350063548,1737597046543,-630.23,0.00019452,2]
[350063549,1737597046553,-500.0,0.00019452,2]
[350063550,1737597046562,-500.0,0.00019452,2]
[350063551,1737597046572,-500.0,0.00019452,2]
[350063552,1737597046581,-500.0,0.00019452,2]
[350063553,1737597046590,-500.0,0.00019452,2]
[350063554,1737597046599,-500.0,0.00019452,2]
[350063555,1737597046609,-500.0,0.00019452,2]
[350063556,1737597046618,-500.0,0.00019452,2]
[350063558,1737597046627,-500.0,0.00019452,2]
[350063560,1737597046636,-507.21540769,0.00019452,2]
[350063562,1737597046646,-500.0,0.00019452,2]
[350063564,1737597046655,-527.7,0.00019452,2]
[350063566,1737597046664,-500.0,0.00019452,2]
[350063567,1737597046674,-505.6790999,0.00019452,2]
[350063569,1737597046684,-500.0,0.00019452,2]
[350063571,1737597046696,-511.35999075,0.00019452,2]
[350063573,1737597046706,-500.0,0.00019452,2]
[350063575,1737597046716,-504.77949486,0.00019452,2]
[350063577,1737597046726,-251.82172646,0.00019452,2]
[350063579,1737597046735,-522.55,0.00019452,2]
[350063581,1737597046745,-500.0,0.00019452,2]
[350063583,1737597046754,-500.0,0.00019452,2]
[350063585,1737597046763,-516.91877049,0.00019452,2]
[350063586,1737597046772,-500.0,0.00019452,2]
[350063588,1737597046782,-507.79380144,0.00019452,2]
[350063590,1737597046793,-500.0,0.00019452,2]
[350063592,1737597046802,-500.0,0.00019452,2]
[350063594,1737597046811,-500.0,0.00019452,2]
[350063596,1737597046821,-500.0,0.00019452,2]
[350063598,1737597046830,-500.0,0.00019452,2]
[350063600,1737597046839,-500.0,0.00019452,2]
[350063602,1737597046848,-500.0,0.00019452,2]
[350063604,1737597046857,-500.0,0.00019452,2]
[350063606,1737597046866,-501.70045681,0.00019452,2]
[350063608,1737597046876,-527.31113758,0.00019452,2]
[350063610,1737597046885,-500.0,0.00019452,2]
[350063612,1737597046894,-500.0,0.00019452,2]
[350063614,1737597046903,-510.36767807,0.00019452,2]
[350063616,1737597046912,-500.0,0.00019452,2]
[350063617,1737597046921,-500.0,0.00019452,2]
[350063619,1737597046930,-565.1,0.00019452,2]
[350063621,1737597046940,-254.54132613,0.00019452,2]
[350063623,1737597046949,-500.0,0.00019452,2]
[350063625,1737597046957,-504.23467576,0.00019452,2]
[350063627,1737597046967,-1056.51,0.00019452,2]
[350063629,1737597046980,-500.0,0.00019452,2]
[350063631,1737597046989,-500.0,0.00019452,2]
[350063633,1737597046998,-500.0,0.00019452,2]
[350063635,1737597047007,-512.25785272,0.00019452,2]
[350063637,1737597047016,-500.0,0.00019452,2]
[350063639,1737597047027,-500.0,0.00019452,2]
[350063641,1737597047037,-525.06548009,0.00019452,2]
[350063643,1737597047046,-500.0,0.00019452,2]
[350063645,1737597047056,-627.26,0.00019452,2]
[350063647,1737597047065,-504.47660298,0.00019452,2]
[350063649,1737597047074,-500.0,0.00019452,2]
[350063651,1737597047083,-511.89272855,0.00019452,2]
[350063653,1737597047093,-500.0,0.00019452,2]
[350063655,1737597047102,-500.0,0.00019452,2]
[350063657,1737597047111,-1435.52,0.00019452,2]
[350063659,1737597047121,-500.0,0.00019452,2]
[350063661,1737597047130,-500.0,0.00019452,2]
[350063663,1737597047139,-1381.09,0.00019452,2]
[350063665,1737597047151,-506.66926107,0.00019452,2]
[350063666,1737597047161,-500.0,0.00019452,2]
[350063667,1737597047170,-500.0,0.00019452,2]
[350063668,1737597047179,-289.9495711,0.00019452,2]
[350063669,1737597047189,-873.98,0.00019452,2]
[350063670,1737597047199,-500.0,0.00019452,2]
[350063671,1737597047208,-500.0,0.00019452,2]
[350063672,1737597047217,-588.66,0.00019452,2]
[350063673,1737597047230,-500.0,0.00019452,2]
[350063674,1737597047240,-804.46,0.00019452,2]
[350063675,1737597047250,-500.0,0.00019452,2]
[350063676,1737597047259,-500.0,0.00019452,2]
[350063677,1737597047268,-506.33007297,0.00019452,2]
[350063678,1737597047278,-676.63,0.00019452,2]
[350063679,1737597047287,-500.0,0.00019452,2]
[350063680,1737597047297,-500.0,0.00019452,2]
[350063681,1737597047306,-500.0,0.00019452,2]
[350063682,1737597047315,-2865.77,0.00019452,2]
[350063683,1737597047325,-500.0,0.00019452,2]
[350063684,1737597047334,-500.0,0.00019452,2]
[350063685,1737597047343,-465.79804074,0.00019452,2]
[350063686,1737597047352,-500.0,0.00019452,2]
[350063687,1737597047362,-725.79,0.00019452,2]
[350063688,1737597047371,-500.0,0.00019452,2]
[350063689,1737597047380,-2221.72,0.00019452,2]
[350063690,1737597047389,-500.0,0.00019452,2]
[350063691,1737597047399,-519.17,0.00019452,2]
[350063692,1737597047408,-500.0,0.00019452,2]
[350063693,1737597047418,-509.98411867,0.00019452,2]
[350063694,1737597047427,-674.11,0.00019452,2]
[350063695,1737597047436,-1211.94,0.00019452,2]
[350063696,1737597047447,-500.0,0.00019452,2]
[350063697,1737597047456,-500.0,0.00019452,2]
[350063698,1737597047466,-500.0,0.00019452,2]
[350063699,1737597047478,-500.0,0.00019452,2]
[350063700,1737597047487,-710.8,0.00019452,2]
[350063701,1737597047497,-500.0,0.00019452,2]
[350063702,1737597047506,-853.14,0.00019452,2]
[350063703,1737597047516,-500.0,0.00019452,2]
[350063704,1737597047525,-712.48,0.00019452,2]
[350063705,1737597047534,-1663.29,0.00019452,2]
[350063706,1737597047543,-568.46,0.00019452,2]
[350063707,1737597047552,-706.45,0.00019452,2]
[350063708,1737597047562,-1244.86,0.00019452,2]
[350063709,1737597047571,-512.12553799,0.00019452,2]
[350063710,1737597047580,-757.37,0.00019452,2]
[350063711,1737597047590,-500.0,0.00019452,2]
[350063712,1737597047599,-1088.68,0.00019452,2]
[350063713,1737597047611,-500.0,0.00019452,2]
[350063714,1737597047625,-511.5592395,0.00019452,2]
[350063715,1737597047636,-1574.13,0.00019452,2]
[350063716,1737597047645,-1332.5,0.00019452,2]
[350063717,1737597047654,-511.54576198,0.00019452,2]
[350063718,1737597047663,-500.0,0.00019452,2]
[350063719,1737597047673,-500.0,0.00019452,2]
[350063720,1737597047682,-913.71,0.00019452,2]
[350063721,1737597047691,-200.0,0.00019452,2]
[350063722,1737597047700,-655.19,0.00019452,2]
[350063723,1737597047710,-1162.79,0.00019452,2]
[350063724,1737597047721,-500.0,0.00019452,2]
[350063725,1737597047732,-500.0,0.00019452,2]
[350063726,1737597047742,-500.0,0.00019452,2]
[350063727,1737597047751,-500.0,0.00019452,2]
[350063728,1737597047760,-500.0,0.00019452,2]
[350063729,1737597047769,-326.17,0.00019452,2]
[350063730,1737597047778,-1340.52,0.00019452,2]
[350063731,1737597047790,-500.0,0.00019452,2]
[350063732,1737597047800,-500.0,0.00019452,2]
[350063733,1737597047809,-500.0,0.00019452,2]
[350063734,1737597047818,-480.84458284,0.00019452,2]
[350063735,1737597047827,-513.80508133,0.00019452,2]
[350063736,1737597047836,-500.0,0.00019452,2]
[350063737,1737597047845,-3289.67,0.00019452,2]
[350063738,1737597047854,-500.0,0.00019452,2]
[350063739,1737597047864,-1000.0,0.00019452,2]
[350063740,1737597047873,-1716.49,0.00019452,2]
[350063741,1737597047882,-500.0,0.00019452,2]
[350063742,1737597047891,-879.82,0.00019452,2]
[350063743,1737597047901,-254.90376702,0.00019452,2]
[350063744,1737597047910,-500.0,0.00019452,2]
[350063745,1737597047919,-1172.17,0.00019452,2]
[350063746,1737597047927,-500.0,0.00019452,2]
[350063747,1737597047937,-500.0,0.00019452,2]
[350063748,1737597047946,-508.46700708,0.00019452,2]
[350063749,1737597047957,-500.0,0.00019452,2]
[350063750,1737597047966,-1711.63,0.00019452,2]
[350063751,1737597048115,-2409.19,0.00019452,2]
[350063752,1737597048126,-793.72,0.00019452,2]
[350063753,1737597048135,-510.92384993,0.00019452,2]
[350063754,1737597048145,-500.0,0.00019452,2]
[350063755,1737597048157,-500.0,0.00019452,2]
[350063756,1737597048167,-500.0,0.00019452,2]
[350063757,1737597048176,-510.85951079,0.00019452,2]
[350063758,1737597048186,-500.0,0.00019452,2]
[350063759,1737597048195,-500.0,0.00019452,2]
[350063760,1737597048205,-1896.45,0.00019452,2]
[350063761,1737597048214,-1858.04,0.00019452,2]
[350063762,1737597048227,-500.0,0.00019452,2]
[350063763,1737597048237,-511.24374601,0.00019452,2]
[350063764,1737597048247,-500.0,0.00019452,2]
[350063765,1737597048256,-500.0,0.00019452,2]
[350063766,1737597048266,-500.0,0.00019452,2]
[350063767,1737597048275,-500.0,0.00019452,2]
[350063768,1737597048285,-231.88277915,0.00019452,2]
[350063769,1737597048295,-500.0,0.00019452,2]
[350063770,1737597048305,-704.23,0.00019452,2]
[350063771,1737597048315,-500.0,0.00019452,2]
[350063772,1737597048325,-500.0,0.00019452,2]
[350063773,1737597048335,-506.06028035,0.00019452,2]
[350063774,1737597048344,-716.76,0.00019452,2]
[350063775,1737597048355,-1050.66,0.00019452,2]
[350063776,1737597048364,-1997.74,0.00019452,2]
[350063777,1737597048374,-500.0,0.00019452,2]
[350063778,1737597048383,-500.0,0.00019452,2]
[350063779,1737597048392,-500.0,0.00019452,2]
[350063780,1737597048402,-500.0,0.00019452,2]
[350063781,1737597048416,-500.0,0.00019452,2]
[350063782,1737597048426,-500.0,0.00019452,2]
[350063783,1737597048435,-529.26,0.00019452,2]
[350063784,1737597048444,-728.54,0.00019452,2]
[350063785,1737597048454,-508.82694333,0.00019452,2]
[350063786,1737597048464,-1405.82,0.00019452,2]
[350063787,1737597048473,-500.0,0.00019452,2]
[350063788,1737597048485,-500.0,0.00019452,2]
[350063789,1737597048496,-500.0,0.00019452,2]
[350063790,1737597048506,-503.37437536,0.00019452,2]
[350063791,1737597048516,-500.0,0.00019452,2]
[350063792,1737597048526,-500.0,0.00019452,2]
[350063793,1737597048537,-500.0,0.00019452,2]
[350063794,1737597048546,-500.0,0.00019452,2]
[350063795,1737597048556,-1471.13,0.00019452,2]
[350063796,1737597048566,-500.0,0.00019452,2]
[350063797,1737597048576,-500.0,0.00019452,2]
[350063798,1737597048586,-500.0,0.00019452,2]
[350063799,1737597048596,-500.0,0.00019452,2]
[350063800,1737597048605,-841.66,0.00019452,2]
[350063801,1737597048616,-505.83441102,0.00019452,2]
[350063802,1737597048627,-1836.27,0.00019452,2]
[350063803,1737597048637,-500.0,0.00019452,2]
[350063804,1737597048646,-500.0,0.00019452,2]
[350063805,1737597048656,-500.0,0.00019452,2]
[350063806,1737597048665,-856.13,0.00019452,2]
[350063807,1737597048675,-1400.47,0.00019452,2]
[350063808,1737597048685,-500.0,0.00019452,2]
[350063809,1737597048695,-598.94,0.00019452,2]
[350063810,1737597048704,-500.0,0.00019452,2]
[350063811,1737597048714,-500.0,0.00019452,2]
[350063812,1737597048723,-500.0,0.00019452,2]
[350063813,1737597048735,-500.0,0.00019452,2]
[350063814,1737597048744,-540.77917052,0.00019452,2]
[350063815,1737597048754,-503.53,0.00019452,2]
[350063816,1737597048763,-500.0,0.00019452,2]
[350063817,1737597048772,-500.0,0.00019452,2]
[350063818,1737597048781,-1061.16,0.00019452,2]
[350063819,1737597048791,-500.0,0.00019452,2]
[350063820,1737597048800,-806.2,0.00019452,2]
[350063821,1737597048810,-500.0,0.00019452,2]
[350063822,1737597048820,-500.0,0.00019452,2]
[350063823,1737597048829,-500.0,0.00019452,2]
[350063824,1737597048839,-953.85,0.00019452,2]
[350063825,1737597048848,-500.0,0.00019452,2]
[350063826,1737597048858,-631.59,0.00019452,2]
[350063827,1737597048868,-500.0,0.00019452,2]
[350063828,1737597048877,-500.0,0.00019452,2]
[350063829,1737597048887,-500.0,0.00019452,2]
[350063830,1737597048896,-500.0,0.00019452,2]
[350063831,1737597048906,-500.0,0.00019452,2]
[350063832,1737597048915,-605.19,0.00019452,2]
[350063833,1737597048925,-500.0,0.00019452,2]
[350063834,1737597048934,-500.0,0.00019452,2]
[350063835,1737597048944,-500.0,0.00019452,2]
[350063836,1737597048954,-500.0,0.00019452,2]
[350063837,1737597048963,-612.54,0.00019452,2]
[350063838,1737597048973,-547.64,0.00019452,2]
[350063839,1737597048984,-500.0,0.00019452,2]
[350063840,1737597048994,-500.0,0.00019452,2]
[350063841,1737597049004,-500.0,0.00019452,2]
[350063842,1737597049013,-500.0,0.00019452,2]
[350063843,1737597049023,-500.0,0.00019452,2]
[350063844,1737597049033,-589.93,0.00019452,2]